Cogmind - Beta 12 @@@ ROGUE MODE // 2024.01.01 @ 16:10:27 Player: hanzu Result: Destroyed by C-35 Carver with Carbide Saw Performance ------------- Evolutions (5) 2500 Regions Visited (14) 2800 Robots Destroyed (203) 1015 Value Destroyed (7941) 7941 Prototype IDs (23) 460 Alien Tech Used (0) 0 Bonus (1583) 1583 TOTAL SCORE: 16299 Bonus ------- High Alert Combat Kills 1007 Follower Combat Kills 1133 Entered Garrisons 200 Met Data Miner 300 Friendly Fire -1057 Cogmind --------- Core Integrity 0/1000 Matter 13/300 Energy 99/100 System Corruption 10% Temperature Cool (0) Movement Core (50) Location -5/Factory Parts ------- > --- POWER (1) -------- (None) > --- PROPULSION (5) --- (None) > --- UTILITY (9) ------ (None) > --- WEAPON (2) ------- (None) > --- INVENTORY (5) ---- Light Particle Reactor Armored Wheel Enhanced Coil Gun Enhanced Coil Gun Peak State ------------ > --- POWER ------------ Light Particle Reactor > --- PROPULSION ------- Light Treads Medium Treads Armored Medium Treads Myomer Leg Myomer Leg > --- UTILITY ---------- Improved Cooling System Large Storage Unit Machine Analyzer Weapon Cycler Weapon Cycler Heavy Armor Plating Force Field High-powered Tractor Beam > --- WEAPON ----------- Smartbomb Launcher > --- INVENTORY -------- Micro Fission Core Light Particle Reactor Improved Cooling System Structural Scanner Advanced Sensor Array Enhanced Coil Gun Enhanced Coil Gun Heavy Assault Cannon Heavy Mass Driver Tri-rail Accelerator Mace [Rating: 81] Favorites ----------- Power Deuterium Engine Engine Deuterium Engine Power Core Micro Fission Core Reactor Light Particle Reactor Propulsion Light Treads Treads Light Treads Leg Myomer Leg Hover Unit Aerolev Unit Utility Seismic Detector Device Seismic Detector Storage Humpback Processor Machine Analyzer Hackware Hacking Suite Protection Hardened Medium Armor Plating Weapon Assault Cannon Energy Gun Beamcaster Energy Cannon Advanced Plasma Cannon Ballistic Gun Hypervelocity Coil Gun Ballistic Cannon Assault Cannon Launcher Smartbomb Launcher Impact Weapon Mace Build | -11 -10 -10 -10 -9 -8 -8 -8 -8 -6 -6 -6 -6 -5 -5 ------- Run | Jun Mat Min Exi Min Mat Sto Gar Rec Fac Low Low Dat Pro Fac Slots Evolved 10 | . . . . . 4 . . . 4 . . . . 2 Power . | . . . . . . . . . . . . . . . Propulsion 3 | . . . . . 2 . . . 1 . . . . . Utility 7 | . . . . . 2 . . . 3 . . . . 2 Weapon . | . . . . . . . . . . . . . . . Parts Attached 258 | 7 12 10 1 . 69 3 20 8 23 14 4 . 11 76 Power 11 | 1 1 . . . 2 . 1 . . . 1 . . 5 Engine 4 | 1 1 . . . 1 . 1 . . . . . . . Core 5 | . . . . . 1 . . . . . 1 . . 3 Reactor 2 | . . . . . . . . . . . . . . 2 Propulsion 41 | 2 . . . . 10 2 2 3 4 1 . . 2 15 Treads 37 | 2 . . . . 9 1 2 3 4 1 . . 2 13 Leg 3 | . . . . . . 1 . . . . . . . 2 Wheel . | . . . . . . . . . . . . . . . Hover 1 | . . . . . 1 . . . . . . . . . Flight . | . . . . . . . . . . . . . . . Utility 123 | 2 9 7 1 . 31 1 4 2 16 7 . . 4 39 Device 69 | 1 4 4 . . 16 . . . 7 5 . . 2 30 Storage 7 | 1 1 . 1 . 1 . . 1 . . . . 1 1 Processor 6 | . . . . . . . . . . . . . 1 5 Hackware 6 | . . . . . . . 2 . 4 . . . . . Protection 35 | . 4 3 . . 14 1 2 1 5 2 . . . 3 Artifact . | . . . . . . . . . . . . . . . Weapon 83 | 2 2 3 . . 26 . 13 3 3 6 3 . 5 17 Energy Gun 4 | . . . . . 4 . . . . . . . . . Energy Cannon 6 | . . . . . . . . 2 . . . . . 4 Ballistic Gun 10 | 2 . . . . 1 . . 1 1 . . . . 5 Ballistic Cannon 33 | . 2 2 . . 12 . 7 . 1 3 1 . 1 4 Launcher 28 | . . . . . 8 . 6 . 1 3 2 . 4 4 Special Weapon . | . . . . . . . . . . . . . . . Impact Weapon 2 | . . 1 . . 1 . . . . . . . . . Slashing Weapon . | . . . . . . . . . . . . . . . Piercing Weapon . | . . . . . . . . . . . . . . . Special Melee Weapon . | . . . . . . . . . . . . . . . Unidentified Prototypes 9 | . 1 . . . 4 . . . 1 . . . 1 2 Corrupted Parts 2 | . . . . . . . . . 2 . . . . . System Corruption 5 | . . . . . . . . . 5 . . . . . Parts Lost 51 | . . . . . 9 1 5 1 1 2 . . 3 29 Power 2 | . . . . . . . . . . . . . . 2 Propulsion 22 | . . . . . 5 1 2 1 . . . . 2 11 Utility 20 | . . . . . 3 . 1 . 1 2 . . 1 12 Weapon 7 | . . . . . 1 . 2 . . . . . . 4 Highest Loss Streak 11 | . . . . . 7 1 3 1 1 1 . . 2 11 To Critical Strikes . | . . . . . . . . . . . . . . . Average Slot Usage (%) 91 | . 99 100 100 100 98 89 96 96 91 86 85 80 82 76 Engine 6 | . 14 14 14 14 8 . 1 9 6 6 . . . . Core 2 | . . . . . . 9 7 . . . 5 6 6 3 Treads 30 | . 28 28 28 28 35 21 32 35 33 33 33 33 33 21 Device 15 | . 7 11 14 14 21 16 2 . 15 26 26 26 24 22 Storage 8 | . 14 14 14 14 9 9 9 9 6 6 6 6 6 4 Processor 1 | . . . . . . . . . . . . . 1 10 Hackware 3 | . . . . . . . 13 15 10 . . . . . Protection 5 | . 6 2 . . 5 10 11 9 6 6 6 6 5 2 Energy Cannon 1 | . . . . . . . . 7 5 . . . . 2 Ballistic Gun 1 | . 2 . . . . . . 5 5 . . . . . Ballistic Cannon 11 | . 25 27 28 28 12 18 17 5 . 5 4 . 2 1 Naked Turns 20 | . . . . . . . . . . . . . . 20 Heaviest Build 249 | 15 37 37 55 55 116 108 108 232 249 245 232 212 232 231 Greatest Support 115 | 40 40 40 40 40 80 60 80 87 107 107 107 107 107 115 Greatest Overweight (x) 10 | . . . 1 1 1 2 2 2 2 2 2 1 2 10 Average Overweight (x) . | . . . . 1 . 1 1 1 2 2 1 1 1 . Largest Inventory Capacity 35 | 8 15 15 20 20 25 25 25 35 35 35 35 35 35 35 Average Capacity 25 | 7 13 15 17 20 24 25 25 27 35 35 35 35 35 21 Most Carried 35 | 4 15 15 17 18 25 21 25 31 35 35 33 33 33 35 Average Carried 23 | 2 10 14 15 17 23 20 24 25 30 33 31 33 31 17 Final Capacity 35 | 8 15 15 20 20 25 25 25 35 35 35 35 35 35 5 Final Carried 35 | 3 15 15 17 18 20 21 25 31 35 32 33 33 30 4 Class Distribution -------------------- 29% | Hauler-Mutant 24% | Mutant 21% | Scavenger-Mutant 12% | Hacker-Mutant 10% | Commander-Mutant Dominant Class ---------------- Mutant | -10/Materials Mutant | -10/Mines Mutant | -10/Exiles Mutant | -9/Mines Scavenger-Mutant | -8/Materials Commander-Mutant | -8/Storage Hacker-Mutant | -8/Garrison Commander-Mutant | -8/Recycling Hauler-Mutant | -6/Factory Hauler-Mutant | -6/Lower Caves Hauler-Mutant | -6/Lower Caves Hauler-Mutant | -6/Data Miner Hauler-Mutant | -5/Proximity Caves Scavenger-Mutant | -5/Factory Resources | -11 -10 -10 -10 -9 -8 -8 -8 -8 -6 -6 -6 -6 -5 -5 ----------- Run | Jun Mat Min Exi Min Mat Sto Gar Rec Fac Low Low Dat Pro Fac Matter Collected 7109 | 231 479 590 12 12 1238 261 552 359 340 758 80 . 685 1512 Remotely 2133 | . 18 . . . 188 251 . . . 484 80 . 562 550 Salvage Created 5943 | 124 454 148 . . 1244 103 463 732 398 260 43 . 128 1846 Parts 342 | 13 22 17 . . 70 3 25 27 36 11 . . 9 109 Haulers Intercepted 9 | . 2 . . . 5 . . 1 . . . . . 1 Recyclers Shooed 12 | 1 . . . . 1 1 . 4 1 . . . . 4 Parts Field Recycled . | . . . . . . . . . . . . . . . Retrieved Matter . | . . . . . . . . . . . . . . . Parts Self-Destructed 21 | . . . . . . . . . . 14 . . 7 . Prevented . | . . . . . . . . . . . . . . . Kills | -11 -10 -10 -10 -9 -8 -8 -8 -8 -6 -6 -6 -6 -5 -5 ------- Run | Jun Mat Min Exi Min Mat Sto Gar Rec Fac Low Low Dat Pro Fac Combat Hostiles Destroyed 151 | . 10 10 . . 35 1 19 5 4 13 5 . 9 40 Melee 3 | . . 1 . . . . . . . . . . . 2 Guns 14 | . 2 . . . 5 . . 1 2 . . . . 4 Cannons 75 | . 8 9 . . 10 1 10 4 2 5 1 . 2 23 AOE 58 | . . . . . 20 . 9 . . 8 4 . 7 10 Classes Destroyed 20 | 2 5 1 . . 6 . 2 1 1 . 1 . . 1 Worker 4 | . . . . . 3 . . . . . . . . 1 Builder 7 | . . . . . 3 . . . . . . . . 4 Tunneler 4 | 3 . . . . 1 . . . . . . . . . Hauler 9 | . 2 . . . 5 . . 1 . . . . . 1 Recycler 9 | 1 1 . . . . 1 . 3 1 . . . . 2 Mechanic 4 | . 1 . . . 1 . . . . . . . . 2 Operator 5 | . 3 . . . 2 . . . . . . . . . Watcher 6 | . 1 . . . 4 . 1 . . . . . . . Swarmer 42 | . . 7 . . 6 . 6 . 1 6 . . 5 11 Grunt 62 | . 10 3 . . 23 . 5 . . 5 4 . 3 9 Brawler 3 | . . . . . 2 . . . . 1 . . . . Duelist 3 | . . . . . . . 2 1 . . . . . . Protector 3 | . . . . . . . . . 2 . . . . 1 Sentry 10 | . . . . . 2 1 . 3 . 2 . . . 2 Demolisher 1 | . . . . . . . . 1 . . . . . . Specialist 4 | . . . . . . . 4 . . . . . . . Hunter 12 | . . . . . 1 . 2 . 2 . . . . 7 Programmer 9 | . . . . . . . . . . . . . . 9 Heavy 3 | . . . . . 1 . . . 2 . . . . . Behemoth 2 | . . . . . . . . . . . 1 . 1 . Thug 1 | . . 1 . . . . . . . . . . . . Savage 1 | . . . . . . . . . . . . . . 1 Best Kill Streak 15 | 4 3 4 . . 15 1 4 2 2 4 4 . 5 8 Combat Bots Only 12 | . 2 4 . . 12 1 4 1 1 4 4 . 5 7 Max Kills in Single Turn 4 | 1 1 1 . . 4 1 3 1 3 2 2 . 3 2 Gunslinging . | . . . . . . . . . . . . . . . Exploded 4 | . . . . . 4 . 3 . . 2 2 . 3 2 Melee 1 | . . 1 . . . . . . . . . . . 1 Uniques/NPCs Destroyed . | . . . . . . . . . . . . . . . Combat | -11 -10 -10 -10 -9 -8 -8 -8 -8 -6 -6 -6 -6 -5 -5 -------- Run | Jun Mat Min Exi Min Mat Sto Gar Rec Fac Low Low Dat Pro Fac Damage Taken 11403 | . 439 262 . . 2147 13 752 252 630 1278 221 . 661 4748 Core 1753 | . 87 26 . . 213 . 60 34 34 233 . . 63 1003 Absorbed by Shields 467 | . . . . . . . . 8 18 . . . . 441 Regen/Repaired (Parts) 582 | . 44 . . . 263 . . . . . . . . 275 Core Remaining (%) 64 | 100 . . . 54 . . . 44 . . . . 61 . Volleys Fired 515 | 9 58 27 . . 105 3 52 28 22 33 10 . 30 138 Largest 2 | 2 2 2 . . 2 2 2 2 2 1 1 . 1 2 Hottest 188 | 40 70 70 . . 150 88 88 133 133 75 75 . 75 188 Shots Fired 833 | 18 116 54 . . 200 6 91 44 36 36 10 . 29 193 Gun 135 | 18 10 . . . 58 . . 11 14 . . . . 24 Cannon 619 | . 106 54 . . 123 6 77 33 18 25 1 . 22 154 Launcher 79 | . . . . . 19 . 14 . 4 11 9 . 7 15 Special . | . . . . . . . . . . . . . . . Kinetic 573 | 18 116 54 . . 125 6 77 21 15 25 1 . 22 93 Thermal 181 | . . . . . 56 . . 23 17 . . . . 85 Explosive 79 | . . . . . 19 . 14 . 4 11 9 . 7 15 Electromagnetic . | . . . . . . . . . . . . . . . Robot Hit Streak 17 | 5 7 6 . . 8 3 9 10 11 8 7 . 17 12 Robot Miss Streak 4 | 1 3 2 . . 4 2 4 3 2 2 . . 2 3 Penetration Max 1 | . . . . . . . . 1 1 . . . . 1 Secondary Targets 1 | . . . . . . . . . . . . . . 1 Max Gunslinging Chain 1 | . . . . . . . . . . . . . . 1 Shots Hit Robots 460 | 13 67 28 . . 107 4 37 32 20 22 1 . 21 108 Core Hits 299 | 5 23 11 . . 91 2 33 13 19 17 13 . 13 59 Critical Kills 4 | . . . . . . . . 2 1 . . . . 1 Critical Parts Destroyed 10 | . 1 1 . . . . . 3 4 . . . . 1 Critical Strikes 38 | . 3 4 . . 8 1 2 6 5 3 . . . 6 Burn 2 | . . . . . 2 . . . . . . . . . Meltdown 2 | . . . . . . . . 1 . . . . . 1 Destroy 12 | . 1 . . . . . . 5 5 . . . . 1 Blast 21 | . 2 3 . . 6 1 2 . . 3 . . . 4 Smash 1 | . . 1 . . . . . . . . . . . . Melee Attacks 5 | . . 1 . . 4 . . . . . . . . . Impact 5 | . . 1 . . 4 . . . . . . . . . Slashing . | . . . . . . . . . . . . . . . Piercing . | . . . . . . . . . . . . . . . Sneak Attacks . | . . . . . . . . . . . . . . . Combat Hostiles . | . . . . . . . . . . . . . . . Follow-up Attacks . | . . . . . . . . . . . . . . . Damage Inflicted 22988 | 158 1205 601 . . 4729 103 1726 956 826 2532 1313 . 1935 6904 Guns 1559 | 158 94 . . . 664 . . 70 80 . . . . 493 Cannons 12535 | . 1111 569 . . 1616 103 762 876 379 1259 68 . 1089 4703 Explosions 8771 | . . . . . 2437 . 964 . 337 1273 1245 . 846 1669 Melee 32 | . . 32 . . . . . . . . . . . . Ramming 91 | . . . . . 12 . . 10 30 . . . . 39 Kinetic 10464 | 158 1205 569 . . 1628 103 762 224 161 1259 68 . 1089 3238 Thermal 3630 | . . . . . 652 . . 722 298 . . . . 1958 Explosive 8771 | . . . . . 2437 . 964 . 337 1273 1245 . 846 1669 Electromagnetic . | . . . . . . . . . . . . . . . Impact 32 | . . 32 . . . . . . . . . . . . Slashing . | . . . . . . . . . . . . . . . Piercing . | . . . . . . . . . . . . . . . Highest Corruption 10 | . . . . . . . . . 5 10 10 10 10 10 Average Corruption 7 | . . . . . . . . . 4 7 10 10 10 4 Corruption Purged . | . . . . . . . . . . . . . . . Corruption Blocked . | . . . . . . . . . . . . . . . Effects 163 | . . . . . . . . . 10 38 26 7 48 34 Message Errors 35 | . . . . . . . . . 2 8 3 1 11 10 Matter Fused 46 | . . . . . . . . . . 10 10 1 17 8 Heat Flow Errors 23 | . . . . . . . . . 3 7 1 1 6 5 Energy Discharges 21 | . . . . . . . . . 2 3 4 1 5 6 Parts Rejected 1 | . . . . . . . . . . 1 . . . . Data Loss (minor) 20 | . . . . . . . . . 3 4 4 3 4 2 Data Loss (major) 3 | . . . . . . . . . . 1 1 . 1 . Misfires 4 | . . . . . . . . . . 3 . . . 1 Alerts 8 | . . . . . . . . . . 1 3 . 3 1 Misdirections 1 | . . . . . . . . . . . . . . 1 Weapon Failures 1 | . . . . . . . . . . . . . 1 . Overload Shots . | . . . . . . . . . . . . . . . Overflow Damage 1338 | . 20 55 . . 31 . 17 18 20 303 . . 206 668 Projectiles 782 | . 20 23 . . 16 . 4 18 . 137 . . 119 445 Explosions 524 | . . . . . 15 . 13 . 20 166 . . 87 223 Melee 32 | . . 32 . . . . . . . . . . . . Knockbacks 64 | . 11 13 . . 16 1 6 1 1 2 . . 1 12 Impact 1 | . . . . . . . . . 1 . . . . . Kinetic 57 | . 11 9 . . 14 1 6 1 . 2 . . 1 12 Secondary 6 | . . 4 . . 2 . . . . . . . . . Self-Inflicted Damage 721 | . . . . . 152 . 72 . 158 39 . . 35 265 Shots 22 | . . . . . 6 . 5 . 2 1 . . 1 7 Rammed 16 | . . . . . 2 . . 1 2 . . . . 11 Targets Rammed 18 | . . . . . 2 . . 1 2 . . . . 13 Kicked . | . . . . . . . . . . . . . . . Crushed 2 | . . . . . . . . . . . . . . 2 Highest Temperature 509 | . 253 210 . . 315 92 190 288 217 282 263 256 278 509 Average Temperature 75 | . 55 68 . . 54 41 39 109 44 87 65 135 93 100 Received Heat Transfer 2322 | . 297 18 . . 765 9 81 25 7 216 57 . 126 721 Effects 12 | . . 2 . . 1 . . 2 . . . 2 . 5 Shutdowns 2 | . . . . . . . . . . . . . . 2 Energy Bleed 3 | . . . . . . . . 2 . . . . . 1 Interference 6 | . . 2 . . 1 . . . . . . 2 . 1 Damage (minor) 1 | . . . . . . . . . . . . . . 1 Siege Activations . | . . . . . . . . . . . . . . . Robots Corrupted . | . . . . . . . . . . . . . . . Combat Hostiles . | . . . . . . . . . . . . . . . Parts Fried . | . . . . . . . . . . . . . . . Impact Corruptions 2 | . . 2 . . . . . . . . . . . . Robots Melted 2 | . . . . . . . . 1 . . . . . 1 Combat Hostiles 1 | . . . . . . . . . . . . . . 1 Parts Melted 9 | . . . . . 1 . . 1 1 . . . . 6 Heat Transferred 5294 | . . . . . 1295 . . 1050 450 . . . . 2499 Parts Sabotaged . | . . . . . . . . . . . . . . . Parts Stolen . | . . . . . . . . . . . . . . . Parts Stripped . | . . . . . . . . . . . . . . . Power Chain Reactions . | . . . . . . . . . . . . . . . Missiles Intercepted . | . . . . . . . . . . . . . . . Alert | -11 -10 -10 -10 -9 -8 -8 -8 -8 -6 -6 -6 -6 -5 -5 ------- Run | Jun Mat Min Exi Min Mat Sto Gar Rec Fac Low Low Dat Pro Fac Peak Influence 1821 | 20 252 116 . 58 581 556 1821 839 406 . . . . 1065 Initial 819 | . 13 26 . . 22 245 361 819 321 . . . . 30 Average 400 | 7 125 46 . 8 371 404 1021 420 206 . . . . 363 Maximum Alert Level 5 | . 1 . . . 2 2 5 3 2 . . . . 3 Low Security (%) 39 | 100 86 100 . 100 20 . . . 64 . . . . 34 Level 1 22 | . 13 . . . 20 54 9 53 32 . . . . 32 Level 2 22 | . . . . . 59 45 19 42 3 . . . . 11 Level 3 9 | . . . . . . . 27 3 . . . . . 22 Level 4 4 | . . . . . . . 28 . . . . . . . Level 5 2 | . . . . . . . 15 . . . . . . . High Security . | . . . . . . . . . . . . . . . Max Security . | . . . . . . . . . . . . . . . Squads Dispatched 42 | . 4 1 . . 9 3 . . 7 . . . . 18 Investigation 7 | . 2 1 . . 2 . . . . . . . . 2 Extermination 6 | . . . . . . . . . 2 . . . . 4 Reinforcement 23 | . 2 . . . 5 1 . . 5 . . . . 10 Assault 4 | . . . . . 2 . . . . . . . . 2 Garrison 2 | . . . . . . 2 . . . . . . . . Intercept . | . . . . . . . . . . . . . . . Searches Triggered . | . . . . . . . . . . . . . . . Data Miner Redirects 3 | . . . . . . . . . . . . . . 3 Construction Impeded 6 | . . . . . 1 . . . . . . . . 5 Haulers Reinforced 3 | . . . . . . . . . 1 . . . . 2 Active Scanning Responses . | . . . . . . . . . . . . . . . Cargo Convoy Interrupts 2 | . . . . . . . . . 1 . . . . 1 Stealth | -11 -10 -10 -10 -9 -8 -8 -8 -8 -6 -6 -6 -6 -5 -5 --------- Run | Jun Mat Min Exi Min Mat Sto Gar Rec Fac Low Low Dat Pro Fac Distress Signals 10 | . 1 . . . 4 . . . 1 . . . . 4 Communications Jammed . | . . . . . . . . . . . . . . . Distress Signals . | . . . . . . . . . . . . . . . Times Spotted 257 | . 22 14 . 1 63 6 33 6 17 10 5 . 9 71 Peak Tracking Total 14 | . 4 3 . 1 7 4 6 2 4 5 5 . 5 14 Tactical Retreats 11 | . 1 . . . 3 . . . . . . . 1 6 Traps | -11 -10 -10 -10 -9 -8 -8 -8 -8 -6 -6 -6 -6 -5 -5 ------- Run | Jun Mat Min Exi Min Mat Sto Gar Rec Fac Low Low Dat Pro Fac Traps Triggered 14 | . . . . . 1 . 7 . . . . . . 6 Indirectly . | . . . . . . . . . . . . . . . Trap Hack Attempts . | . . . . . . . . . . . . . . . Triggered . | . . . . . . . . . . . . . . . Disarmed . | . . . . . . . . . . . . . . . Reprogrammed . | . . . . . . . . . . . . . . . Reused . | . . . . . . . . . . . . . . . Traps Extracted . | . . . . . . . . . . . . . . . Installed . | . . . . . . . . . . . . . . . Triggered 4 | . . . . . . . . . 2 . . . 2 . Machines | -11 -10 -10 -10 -9 -8 -8 -8 -8 -6 -6 -6 -6 -5 -5 ---------- Run | Jun Mat Min Exi Min Mat Sto Gar Rec Fac Low Low Dat Pro Fac Machines Disabled 31 | . 1 1 . . 4 . 8 . 4 1 . . . 12 Max in Single Turn 6 | . 1 . . . 1 . 2 . 2 1 . . . 6 Garrison Access 1 | . . . . . 1 . . . . . . . . . Garrison Relay 3 | . . . . . . . 3 . . . . . . . Phase Generator 1 | . . . . . . . 1 . . . . . . . Machines Repaired . | . . . . . . . . . . . . . . . Machines Sabotaged . | . . . . . . . . . . . . . . . Overloaded Fab Kills . | . . . . . . . . . . . . . . . Hacking | -11 -10 -10 -10 -9 -8 -8 -8 -8 -6 -6 -6 -6 -5 -5 --------- Run | Jun Mat Min Exi Min Mat Sto Gar Rec Fac Low Low Dat Pro Fac Machines Accessed 43 | . 5 1 1 . 6 3 3 10 4 . . 4 . 6 Terminals 19 | . 2 . . . 3 2 3 6 2 . . . . 1 Fabricators 5 | . . . . . . . . . 2 . . . . 3 Repair Stations 3 | . 1 . . . 1 . . . . . . . . 1 Recycling Units 7 | . 2 . . . 1 . . 4 . . . . . . Scanalyzers 2 | . . . . . 1 . . . . . . . . 1 Garrison Access 1 | . . . . . . 1 . . . . . . . . Total Hacks 157 | . 19 1 1 . 25 11 8 38 12 . . 30 . 12 Successful 120 | . 12 1 1 . 19 9 5 23 11 . . 30 . 9 Failed 37 | . 7 . . . 6 2 3 15 1 . . . . 3 Catastrophic 1 | . . . . . . . . . . . . . . 1 Database Lockouts . | . . . . . . . . . . . . . . . Manual 62 | . 8 . . . 13 6 2 23 6 . . . . 4 Terminals 70 | . 9 . . . 10 9 8 27 5 . . . . 2 Fabricators 13 | . . . . . . . . . 7 . . . . 6 Repair Stations 17 | . 5 . . . 10 . . . . . . . . 2 Recycling Units 18 | . 5 . . . 2 . . 11 . . . . . . Scanalyzers 5 | . . . . . 3 . . . . . . . . 2 Garrison Access 2 | . . . . . . 2 . . . . . . . . Terminal Hacks 61 | . 4 1 1 . 3 5 3 12 2 . . 30 . . Record 12 | . . . 1 . . . . . . . . 11 . . Part Schematic 12 | . . . . . . 2 . . . . . 10 . . Robot Schematic 6 | . . . . . . . . . . . . 6 . . Robot Analysis 15 | . 3 . . . 2 . . 10 . . . . . . Prototype ID Bank 4 | . 1 . . . . . . . . . . 3 . . Open Door 1 | . . 1 . . . . . . . . . . . . Branch Access Points 1 | . . . . . . . . . 1 . . . . . Emergency Access Points 1 | . . . . . . . 1 . . . . . . . Fabricator Index 1 | . . . . . . . . . 1 . . . . . Unreport Threat 3 | . . . . . 1 . . 2 . . . . . . Locate Traps 1 | . . . . . . 1 . . . . . . . . Zone Layout 2 | . . . . . . 2 . . . . . . . . Garrison Registry 1 | . . . . . . . 1 . . . . . . . Patrol Navigation 1 | . . . . . . . 1 . . . . . . . Fabricator Hacks 9 | . . . . . . . . . 5 . . . . 4 Network Status 1 | . . . . . . . . . . . . . . 1 Load Schematic 3 | . . . . . . . . . 2 . . . . 1 Build 5 | . . . . . . . . . 3 . . . . 2 Repair Station Hacks 12 | . 2 . . . 8 . . . . . . . . 2 Scan Component 6 | . 1 . . . 4 . . . . . . . . 1 Repair 6 | . 1 . . . 4 . . . . . . . . 1 Recycling Unit Hacks 10 | . 3 . . . 1 . . 6 . . . . . . Process 1 | . 1 . . . . . . . . . . . . . Retrieve Matter 1 | . 1 . . . . . . . . . . . . . Retrieve Components 8 | . 1 . . . 1 . . 6 . . . . . . Scanalyzer 3 | . . . . . 2 . . . . . . . . 1 Insert Component 2 | . . . . . 1 . . . . . . . . 1 Analyze 1 | . . . . . 1 . . . . . . . . . Garrison Access Hacks 1 | . . . . . . 1 . . . . . . . . Unlock Access 1 | . . . . . . 1 . . . . . . . . Unauthorized Hacks 24 | . 3 . . . 5 3 2 5 4 . . . . 2 Terminals 12 | . . . . . 2 3 2 3 2 . . . . . Botnet 10 | . . . . . 2 1 2 3 2 . . . . . Detonate 1 | . . . . . . 1 . . . . . . . . Operators 1 | . . . . . . 1 . . . . . . . . Fabricators 4 | . . . . . . . . . 2 . . . . 2 Prioritize 3 | . . . . . . . . . 2 . . . . 1 Download 1 | . . . . . . . . . . . . . . 1 Repair Stations 2 | . 1 . . . 1 . . . . . . . . . Mechanics 2 | . 1 . . . 1 . . . . . . . . . Recycling Units 5 | . 2 . . . 1 . . 2 . . . . . . Recyclers 2 | . . . . . 1 . . 1 . . . . . . Tunnel 3 | . 2 . . . . . . 1 . . . . . . Scanalyzers 1 | . . . . . 1 . . . . . . . . . Extract 1 | . . . . . 1 . . . . . . . . . Garrison Access . | . . . . . . . . . . . . . . . Data Cores Recovered 1 | . 1 . . . . . . . . . . . . . Used . | . . . . . . . . . . . . . . . Hacking Detections 30 | . 2 . . . 5 3 3 9 4 . . . . 4 Full Trace Events 4 | . . . . . . . . 3 . . . . . 1 Feedback Events . | . . . . . . . . . . . . . . . Feedback Blocked . | . . . . . . . . . . . . . . . Robot Schematics Acquired 6 | . . . . . . . . . . . . 6 . . Robots Built . | . . . . . . . . . . . . . . . Authchips . | . . . . . . . . . . . . . . . Time . | . . . . . . . . . . . . . . . Total Robot Build Rating . | . . . . . . . . . . . . . . . Part Schematics Acquired 15 | . . . . . 3 1 . . . . . 10 . 1 Parts Built 7 | . . . . . . . . . 5 . . . . 2 Authchips 2 | . . . . . . . . . 2 . . . . . Time 383 | . . . . . . . . . 149 . . . . 234 Total Part Build Rating 31 | . . . . . . . . . 17 . . . . 14 Parts Repaired 6 | . 1 . . . 4 . . . . . . . . 1 Time 168 | . 26 . . . 104 . . . . . . . . 38 Parts Recycled . | . . . . . . . . . . . . . . . Recycled Matter 112 | . 112 . . . . . . . . . . . . . Retrieved Matter 112 | . 112 . . . . . . . . . . . . . Retrieved Components 29 | . 10 . . . 3 . . 16 . . . . . . Parts Scanalyzed 2 | . . . . . 1 . . . . . . . . 1 Part Schematics Acquired 1 | . . . . . 1 . . . . . . . . . Parts Damaged . | . . . . . . . . . . . . . . . Bothacking | -11 -10 -10 -10 -9 -8 -8 -8 -8 -6 -6 -6 -6 -5 -5 ------------ Run | Jun Mat Min Exi Min Mat Sto Gar Rec Fac Low Low Dat Pro Fac Used RIF Installer . | . . . . . . . . . . . . . . . Robots Hacked . | . . . . . . . . . . . . . . . Non-combat . | . . . . . . . . . . . . . . . Combat . | . . . . . . . . . . . . . . . Robot Hacks Applied . | . . . . . . . . . . . . . . . Relay Couplers Released 17 | . . . . . 3 . 14 . . . . . . . Machine Destruction 17 | . . . . . 3 . 14 . . . . . . . Fabnet Peak Effective % . | . . . . . . . . . . . . . . . Robots Rewired 20 | . . . . . . . 4 15 . 1 . . . . Allies Hacked . | . . . . . . . . . . . . . . . Hacks Repelled . | . . . . . . . . . . . . . . . Allies | -11 -10 -10 -10 -9 -8 -8 -8 -8 -6 -6 -6 -6 -5 -5 -------- Run | Jun Mat Min Exi Min Mat Sto Gar Rec Fac Low Low Dat Pro Fac Total Allies 37 | . . 3 . 3 . 10 4 15 . 1 . . 1 . Largest Group 13 | . . 3 . 3 3 10 5 13 12 1 . . 1 . Highest-Rated Group 273 | . . 70 . 40 40 173 93 273 239 29 . . 96 . Highest-Rated Ally 96 | . . 31 . 16 16 29 29 34 34 29 . . 96 . Warlord Squad Rendezvous 1 | . . . . . . . . . . . . . . 1 Muscle 1 | . . . . . . . . . . . . . . 1 Total Orders . | . . . . . . . . . . . . . . . Ally Attacks 223 | . . 13 . 12 26 72 51 7 21 3 . . 18 . Total Damage 4613 | . . 234 . 123 284 1020 997 401 690 19 . . 845 . Kills 46 | . . 2 . 2 5 9 14 6 4 1 . . 3 . Allies Corrupted . | . . . . . . . . . . . . . . . Allies Melted . | . . . . . . . . . . . . . . . Intel | -11 -10 -10 -10 -9 -8 -8 -8 -8 -6 -6 -6 -6 -5 -5 ------- Run | Jun Mat Min Exi Min Mat Sto Gar Rec Fac Low Low Dat Pro Fac Robot Analysis Total 15 | . 3 . . . 2 . . 10 . . . . . . Derelict Logs Recovered 7 | . . 2 . 1 . . . . . 3 1 . . . Drone Launches . | . . . . . . . . . . . . . . . Drone Recoveries . | . . . . . . . . . . . . . . . Decoded 0b10 Intel 22 | . . . . . . . . . . . . . . 22 Garrisons 1 | . . . . . . . . . . . . . . 1 Patrols 11 | . . . . . . . . . . . . . . 11 Reinforcements 2 | . . . . . . . . . . . . . . 2 Guards 8 | . . . . . . . . . . . . . . 8 Exploration | -11 -10 -10 -10 -9 -8 -8 -8 -8 -6 -6 -6 -6 -5 -5 ------------- Run | Jun Mat Min Exi Min Mat Sto Gar Rec Fac Low Low Dat Pro Fac Turns Passed 18104 | 112 1317 1236 376 795 2606 171 2482 1584 1331 1298 810 188 1356 2442 Spaces Moved 6644 | 46 608 644 199 307 848 49 895 533 366 359 219 76 429 1066 Core 323 | 7 . . . . . . . . . . . . . 316 Treads 6284 | 39 608 644 199 307 848 49 895 533 366 359 219 76 429 713 Legs 37 | . . . . . . . . . . . . . . 37 Wheels . | . . . . . . . . . . . . . . . Hover . | . . . . . . . . . . . . . . . Flight . | . . . . . . . . . . . . . . . Fastest Speed 50 | 50 160 160 160 240 160 240 240 242 322 328 250 250 250 50 Average Speed 227 | 143 160 160 186 240 224 285 242 260 325 329 328 250 286 169 Slowest Speed 970 | 160 160 160 240 240 240 320 320 322 328 330 330 250 330 970 Overloaded Moves . | . . . . . . . . . . . . . . . Propulsion Burnouts . | . . . . . . . . . . . . . . . Robots Hopped . | . . . . . . . . . . . . . . . Cave-ins Triggered 1 | . . . . . . . . . . 1 . . . . Exploration Rate (%) 56 | 3 67 99 57 72 72 11 93 93 11 63 43 68 71 28 Regions Visited 14 Branch Regions 9 Pre-discovered Areas 6 | . 2 . 1 . . . . 1 . 1 . 1 . . Known Exits Taken 5 | . . 1 . . 1 1 . . 1 1 . . . . Unknown Exits Taken 8 | 1 1 . 1 1 . . . 1 . . 1 1 1 . Scrap Searched 8 | . . 1 . 2 . . . . . 2 2 . 1 . Spaces Dug 26 | . . . . . 2 . 9 . 3 . . . . 12 Terrain Destroyed 848 | . . . . . 121 . 152 2 42 174 94 . 92 171 Melee 2 | . . . . . 2 . . . . . . . . . Projectile 111 | . . . . . 20 . 1 2 7 11 1 . 9 60 AOE 735 | . . . . . 99 . 151 . 35 163 93 . 83 111 Terrain Rammed . | . . . . . . . . . . . . . . . Walls Destroyed . | . . . . . . . . . . . . . . . Machines Disabled . | . . . . . . . . . . . . . . . Actions | -11 -10 -10 -10 -9 -8 -8 -8 -8 -6 -6 -6 -6 -5 -5 --------- Run | Jun Mat Min Exi Min Mat Sto Gar Rec Fac Low Low Dat Pro Fac Total 8885 | 74 833 794 204 366 1330 76 1128 689 469 447 306 75 531 1563 Wait 960 | 3 133 101 . 59 240 19 77 1 30 14 69 . 52 162 Move 6628 | 45 607 643 198 306 847 48 892 532 365 358 218 75 428 1066 Hop . | . . . . . . . . . . . . . . . Pick Up 211 | 10 18 6 3 1 41 3 22 17 17 10 . . 3 60 Fast Attach . | . . . . . . . . . . . . . . . Attach 139 | 7 1 1 . . 21 2 6 4 14 10 4 . 8 61 Detach 29 | . . . . . . . . . 3 2 4 . 5 15 Swap 119 | . 11 9 1 . 48 1 14 4 9 4 . . 3 15 Drop 114 | . 5 6 2 . 22 . 16 11 7 9 1 . 2 33 Fire 515 | 9 58 27 . . 105 3 52 28 22 33 10 . 30 138 Melee 5 | . . 1 . . 4 . . . . . . . . . Ram 2 | . . . . . . . . . . . . . . 2 Kick . | . . . . . . . . . . . . . . . Crush 16 | . . . . . 2 . . 1 2 . . . . 11 Escape Stasis 10 | . . . . . . . 10 . . . . . . . Rewire 137 | . . . . . . . 39 91 . 7 . . . . Trap . | . . . . . . . . . . . . . . . Miscellaneous . | . . . . . . . . . . . . . . . Route ------- -11/Junkyard -10/Materials (discovered 3 exits: [*Mat x2] / *Min) -10/Mines (discovered 3 exits: [*Mat x2] / *Exi) -10/Exiles -9/Mines (discovered 2 exits: *Mat x2) -8/Materials (discovered 4 exits: *Fac x3 / *Sto) -8/Storage -8/Garrison (discovered 3 exits: *Rec x3) -8/Recycling -6/Factory (discovered 2 exits: *Low x2) -6/Lower Caves -6/Lower Caves (discovered 2 exits: *Fac / *Dat) -6/Data Miner -5/Proximity Caves -5/Factory History --------- Turn | Location | Event 8 | -11/Junkyard | Discovered new exit (range 16) 113 | -11/Junkyard | Entered Materials 301 | -10/Materials | Build established: Mutant 557 | -10/Materials | Discovered new exit (range 15) 621 | -10/Materials | Repaired Lgt. Armor Plating 781 | -10/Materials | Discovered new exit (range 15) 1012 | -10/Materials | Discovered new exit (range 5) 1430 | -10/Materials | Entered Mines 1444 | -10/Mines | Met a Derelict shopkeep closing up shop 1598 | -10/Mines | Identified exit to Exiles 1818 | -10/Mines | Received a Rocket Launcher from a helpful Derelict 1847 | -10/Mines | Discovered new exit (range 9) 1850 | -10/Mines | Received a Mining Laser from a helpful Derelict 2330 | -10/Mines | Found a hidden stash of uninstalled traps 2381 | -10/Mines | Discovered new exit (range 10) 2659 | -10/Mines | Deemed a non-threat by the Exiles lab entrance 2666 | -10/Mines | Entered Exiles 2703 | -10/Exiles | Met 8R-AWN 2734 | -10/Exiles | Met EX-HEX 2794 | -10/Exiles | Met EX-DEC 2804 | -10/Exiles | Learned location of Zion (-7) 3013 | -10/Exiles | Discovered new exit (range 14) 3042 | -10/Exiles | Entered Mines 3047 | -9/Mines | Assisted by bots powering up and referring to "LRC-V3" 3485 | -9/Mines | Discovered new exit (range 10) 3776 | -9/Mines | Discovered new exit (range 7) 3820 | -9/Mines | Assembled infested the area 3825 | -9/Mines | Assisted by a Guerilla fighting off Assembled 3837 | -9/Mines | Entered Materials 3837 | -8/Materials | Accompanied by 3 allies 3837 | -8/Materials | Evolved 4 slots: Propulsion x2, Utility x2 3838 | -8/Materials | Identified exit to Factory 3838 | -8/Materials | Identified exit to Storage 4394 | -8/Materials | Build established: Scavenger-Mutant 4395 | -8/Materials | Destroyed 12 combat bots 4455 | -8/Materials | Repaired Seismic Detector 4484 | -8/Materials | Repaired Lgt. Armor Plating 4511 | -8/Materials | Repaired Lgt. Cannon? 4590 | -8/Materials | Repaired Lgt. Treads 5615 | -8/Materials | Discovered exit to Factory (range 16) 6237 | -8/Materials | First assault squad dispatched 6354 | -8/Materials | Destroyed 7 combat bots 6363 | -8/Materials | Lost 7 parts (4n3u) 6377 | -8/Materials | Discovered exit to Factory (range 16) 6443 | -8/Materials | Entered Storage 6459 | -8/Storage | Assisted by bots powering up and referring to "LRC-V3" 6467 | -8/Storage | Garrison activated, responded to threat 6612 | -8/Storage | Identified exit to Garrison 6614 | -8/Storage | Entered Garrison 6614 | -8/Garrison | Accompanied by 5 allies 6716 | -8/Garrison | Triggered checkpoint 6772 | -8/Garrison | Build established: Commander-Mutant 6784 | -8/Garrison | Triggered checkpoint 6926 | -8/Garrison | Garrison Relay disabled 7107 | -8/Garrison | Build established: Scavenger-Mutant 7108 | -8/Garrison | Triggered checkpoint 7214 | -8/Garrison | Triggered checkpoint 7312 | -8/Garrison | Triggered checkpoint 7321 | -8/Garrison | Garrison Relay disabled 7536 | -8/Garrison | Build established: Hacker-Mutant 7592 | -8/Garrison | Triggered checkpoint 7670 | -8/Garrison | Triggered checkpoint 7818 | -8/Garrison | Discovered new exit (range 10) 7924 | -8/Garrison | Triggered checkpoint 8015 | -8/Garrison | Phase Generator disabled 8066 | -8/Garrison | Triggered checkpoint 8067 | -8/Garrison | Discovered new exit (range 37) 8067 | -8/Garrison | Discovered new exit (range 16) 8067 | -8/Garrison | Discovered new exit (range 60) 8335 | -8/Garrison | Triggered checkpoint 8426 | -8/Garrison | Garrison Relay disabled 8464 | -8/Garrison | Lost 3 parts (1n2w) 8917 | -8/Garrison | Attempted to access garrison exit controls, blocked by remote lockdown 9096 | -8/Garrison | Entered Recycling 9100 | -8/Recycling | Core integrity fell below 50% 9829 | -8/Recycling | Build established: Commander-Mutant 10082 | -8/Recycling | Discovered new exit (range 7) 10680 | -8/Recycling | Entered Factory 10680 | -6/Factory | Accompanied by 12 allies 10680 | -6/Factory | Evolved 4 slots: Propulsion x1, Utility x3 10882 | -6/Factory | Specialist reinforcements revealed to be Infiltrators 11033 | -6/Factory | Identified exit to Lower Caves 11441 | -6/Factory | Cargo convoy interrupted 11451 | -6/Factory | Build established: Hauler-Mutant 11484 | -6/Factory | Fabricated Arm. Treads (x2) 11519 | -6/Factory | Fabricated Arm. Treads (x2) 11526 | -6/Factory | Fabricated Adv. Sensor Array (x1) 12011 | -6/Factory | Entered Lower Caves 12039 | -6/Lower Caves | Identified exit to Lower Caves 12105 | -6/Lower Caves | Learned Factory emergency access door positions 12120 | -6/Lower Caves | Met a Warlord Commander 12121 | -6/Lower Caves | Learned location of Warlord (-4) 12123 | -6/Lower Caves | Found Encrypted Comm Array 12630 | -6/Lower Caves | Attracted the attention of an 0b10 outpost 12678 | -6/Lower Caves | Crushed by falling debris 12678 | -6/Lower Caves | System corruption reached 10% 12934 | -6/Lower Caves | Attracted the attention of an 0b10 checkpoint 13010 | -6/Lower Caves | Encountered a Warlord checkpoint 13059 | -6/Lower Caves | Learned Factory non-interactive machine intel 13309 | -6/Lower Caves | Entered another Lower Caves area 13481 | -6/Lower Caves | Discovered new exit (range 8) 13862 | -6/Lower Caves | Spotted B-75 Beast 13939 | -6/Lower Caves | Destroyed B-75 Beast 14030 | -6/Lower Caves | Discovered new exit (range 15) 14056 | -6/Lower Caves | Learned Factory terminal intel 14119 | -6/Lower Caves | Entered Data Miner 14119 | -6/Data Miner | Discovered new exit (range 6) 14167 | -6/Data Miner | Met Data Miner 14212 | -6/Data Miner | Learned location of Section 7 (-2) 14212 | -6/Data Miner | Acquired the access code to Warlord's prototype stash 14249 | -6/Data Miner | Received God Mode back door access code from Data Miner 14307 | -6/Data Miner | Entered Proximity Caves 14668 | -5/Proximity Caves | Received a Behemoth hack from an annoying Tinkerer 14887 | -5/Proximity Caves | Escorted by Enhanced Grunt 15365 | -5/Proximity Caves | Spotted B-75 Beast 15407 | -5/Proximity Caves | Destroyed B-75 Beast 15647 | -5/Proximity Caves | Discovered new exit (range 6) 15663 | -5/Proximity Caves | Entered Factory 15663 | -5/Factory | Evolved 2 slots: Utility x2 15665 | -5/Factory | Loaded intel: 216 non-interactive machine locations 15666 | -5/Factory | Loaded intel: 26 terminal locations 16321 | -5/Factory | Destroyed 7 combat bots 16622 | -5/Factory | Joined by Warlord Muscle squad 16630 | -5/Factory | Lost 7 parts (1p2n3u1w) 16694 | -5/Factory | Repaired Hvy. Armor Plating 16950 | -5/Factory | P-70 Sage assimilated allied VT-58Z(b) 17024 | -5/Factory | Cargo convoy interrupted 17044 | -5/Factory | Incoming assault squad redirected 17080 | -5/Factory | Build established: Scavenger-Mutant 17300 | -5/Factory | Fabricated Myomer Leg? 17463 | -5/Factory | First assault squad dispatched 17493 | -5/Factory | Incoming assault squad redirected 17816 | -5/Factory | Lost 3 parts (2n1u) 17881 | -5/Factory | System corruption reached 10% 17937 | -5/Factory | Core integrity fell below 50% 17963 | -5/Factory | Lost 11 parts (1p3n4u3w) 17965 | -5/Factory | Incoming investigation squad redirected 18098 | -5/Factory | Core integrity fell below 20% 18105 | -5/Factory | Destroyed by C-35 Carver with Carbide Saw Last Messages --------------- 18042_ O-24 Administrator: "IFF HANDSHAKE FAILED. SECURING TERMINAL." 18043_ Connecting with Terminal... 18045_ O-24 Administrator uses terminal to summon reinforcements. 18045_ ALERT: Hostiles spotted, dispatching reinforcements to Terminal F002. 18045_ O-24 Administrator locks terminal. 18057_ System corrupted: Component data lost. 18058_ O-16 Technician: "IFF HANDSHAKE FAILED. SECURING TERMINAL." 18065_ O-16 Technician uses terminal to summon reinforcements. 18065_ ALERT: Hostiles spotted, dispatching reinforcements to Terminal F010. 18065_ O-16 Technician locks terminal. 18073_ System corrupted: Heat flow error (+104). 18085_ Machine Analyzer destroyed. 18086_ Slammed into G-50 Soldier. 18093_ =:C4SQFYMNAGN TH0YKX# 18095_ ALERT: Suspicious intruders detected, dispatching Cutter reinforcements to area. 18099_ Knocked back. 18099_ W-25 Informer destroyed. Map ----- +----------------------------------------------------+ | ?????????????????? =*=%|^ "" | | ?????????????????? ![*%[* F" | | ????????????????? [!%]! "" | | ????????????????? []!*] | | ????????????????? [!]![ | | ????????????????? !!! ###### | | ????????????????? #### ######### | | ?????????????????? ###### ####??# | | ?????????????????? ###### ????#! | | ??????????????????? ?????+#########???# | | "??????????????????#### #??????####???????# | | "?????????????????????# #?????????????????# | | "?????????????????????# ###+##????????????## | | ??????????????????????# # #?????????????? | | "??????????"""????????# # #?????????????? | | "??????????"""????????# # #?????????????# | | "??????????"""????????# # #?????????????# | | ??????????????????????# # #?????????????# | | "?????????????????????# + #??###????????# | | "?????????????????????## # #??#+#????????# | | "?????????????????????? # #??# #????????# | | ?????????????????????????H # #### #????????# | | ??????????????????????????# ### #+#######??# | | ??????????????????####+#### # #??# | | ??????????????????# gc #??# | | ??????????????????# """ @###+# #??# | | ??????????????????# """ # # =%= #??# | | ????"""???????????# """ #] # #??# | | ????"""???????????# # ## #### | | ????"""???????????# """ # ## # | | ???????????""?????# """ #! ## # | | ????"""????T??????# """ #! ## # | | ????"""???????????# # ## / | | ????"""????????????? ######## # | | ???????????????????? ! ???????# # | | ????????????????????######???????############## | | ??????????????????????????############## | | ??????????????????????????# ! # | | ??????????????????????????# """ """ # | | ??????????????????????????# """ """ ! + """ | | ??????????????????????????# """ """ # | | ?""""?????????????????????# # """ | | ?""""?????????????????????########+##### | | ?""""????????????????????????????# #???#""" """ | | ?""""?????????????????????????####+#####"T | | ?""""?????????????????????????# #""" """ | | ?""""?????????????????????????# " " "# | | ?""""?????????????????????????# " " ""# | | ??????????????????????????????# " " ""# ##### | | ??????????????????????????????# " " ""# #???? | +----------------------------------------------------+ Best States ------------- Heat Dissipation 68 Energy Generation 23 Energy Capacity 310 Matter Stores 300 Matter Capacity 300 Sight Range 22 Robot Scan Range 16 Terrain Scan Range 16 Terrain Scan Density 10 Jamming Range 12 Armor Coverage 750 Resistance: KI 20 Weapon Cycling 30 Evasion (%) 50 Targeting Accuracy 5 Recoil Reduction 5 Kinecelleration 40 Offensive Hacking 30 Authchip Count 2 Item Schematics ----------------- Rocket Launcher | -8/Materials | Scanalyzed Imp. Sensor Array | -8/Materials | Extracted Hpw. Shotgun | -8/Materials | Extracted Arm. Treads | -8/Storage | Hacked Combat Drone Bay | -6/Data Miner | Free Lgt. Regenerative Plating | -6/Data Miner | Free Exp. Cesium-ion Thruster | -6/Data Miner | Free Prc. Matter Filter | -6/Data Miner | Free Hvy. Proton Missile Launcher | -6/Data Miner | Free Field Propulsion Array | -6/Data Miner | Free Quantum Capacitor | -6/Data Miner | Free Adv. Trap Scanner | -6/Data Miner | Free Myomer Leg | -6/Data Miner | Free Phase Gun | -6/Data Miner | Free Hdn. Centrium Leg | -5/Factory | Downloaded Robot Schematics ------------------ Y-64 Sentinel | -6/Data Miner | Free X-62 Marksman | -6/Data Miner | Free M-22 Extractor | -6/Data Miner | Free H-66 Slayer | -6/Data Miner | Free G-50 Soldier | -6/Data Miner | Free A-27 Freighter | -6/Data Miner | Free Fabricated ------------ Arm. Treads | x2 | -6/Factory | Authchip Arm. Treads | x2 | -6/Factory | Authchip Adv. Sensor Array | x1 | -6/Factory | Preloaded Myomer Leg | x2 | -5/Factory Alien Tech Used ----------------- None Achievements -------------- None Challenges ------------ None Game ------ Seed SurveybotLightpackBlade Manual? 0 Play Time 02:18:20 Cumulative 161.6 hours Start 2024.01.01 @ 13:53:48 End 2024.01.01 @ 16:10:27 Sessions 1 Manual Loads 0 Difficulty Rogue Special Mode None Game No. 143 Rogue 143 Adventurer 0 Explorer 0 Win Type - Total 1 Types 1/0/0/0/0/0/0/0/0 Lore% 55 Gallery% 66 Achievement% 53 Wizard Run 0 Options --------- ASCII 0 Keyboard 0 Movement Numpad Keybinds 0 Fullscreen 2 Font 18/Smallcaps Map View 76x50 Tactical HUD 1 Map Filters NONE Filters NONE Steam 1 RUN: 0ab219ae-f77f-4a14-80ae-64468a417434